bitfinex/quotes_ETHUSD_20251117
["timestamp","ask_amount","ask_price","bid_price","bid_amount"]
[1763376670425,0.4835,3203.4,3202.2,0.5778]
[1763376670627,0.4835,3203.4,3202.3,0.37057227]
[1763376670924,0.4835,3203.4,3202.2,0.1101]
[1763376671125,0.405504,3203.3,3202.2,0.1101]
[1763376671630,0.4835,3203.2,3202.2,0.1101]
[1763376672122,0.4835,3203.3,3202.3,0.4677]
[1763376672329,0.4835,3203.3,3202.2,7.63026548]
[1763376672512,0.4835,3203.3,3202.3,0.76352655]
[1763376672711,0.4835,3203.3,3202.2,0.1101]
[1763376673426,0.405504,3203.2,3202.2,0.1101]
[1763376673821,0.889004,3203.2,3202.2,1.7115408]
[1763376674125,0.889004,3203.2,3202.3,0.4677]
[1763376674437,0.002,3203.5,3202.3,1.6014408]
[1763376674623,0.407504,3203.5,3202.4,0.03122658]
[1763376674814,0.407504,3203.5,3202.4,0.49892658]
[1763376675010,0.002,3203.5,3202.5,1.1337408]
[1763376675411,0.002,3203.5,3202.6,0.94010838]
[1763376675900,0.002,3203.5,3202.7,0.4677]
[1763376676833,0.002,3203.5,3203.4,0.6153]
[1763376677250,0.002,3203.5,3203.4,1.083]
[1763376679424,0.002,3203.5,3203.4,4.20468321]
[1763376679642,0.002,3203.5,3203.4,5.02177483]
[1763376680217,0.002,3203.5,3203.4,1.90009162]
[1763376681153,0.4793,3203.5,3203.0,0.1421]
[1763376681314,0.4793,3203.5,3203.0,0.6158]
[1763376681743,0.4785,3203.5,3203.0,0.6158]
[1763376682530,0.0012,3203.5,3203.4,0.4894]
[1763376682728,0.0012,3203.5,3203.1,0.4783]
[1763376683153,0.4629,3203.2,3202.3,0.4783]
[1763376683330,0.2874,3203.1,3202.3,4.3383]
[1763376683732,0.2874,3203.1,3202.4,1.6120408]
[1763376684044,0.2874,3203.1,3202.4,0.4783]
[1763376685082,0.7808,3203.1,3202.3,1.1337408]
[1763376685581,0.4934,3203.0,3202.3,1.1337408]
[1763376685966,0.1875,3202.9,3202.3,1.1337408]
[1763376687295,0.4934,3202.8,3202.2,0.1101]
[1763376687666,0.4629,3202.3,3202.1,0.005]
[1763376687865,0.2813,3202.2,3202.1,0.005]
[1763376688593,0.7747,3202.2,3202.1,0.005]
[1763376690308,0.4629,3202.2,3202.1,0.005]
[1763376690614,0.4934,3202.6,3202.1,0.005]
[1763376691357,0.4629,3202.2,3202.1,0.005]
[1763376691766,0.9563,3202.2,3202.1,0.005]
[1763376693205,0.405504,3203.1,3202.1,0.005]
[1763376693508,0.83973718,3203.3,3202.1,0.005]
[1763376693509,0.405504,3202.9,3202.1,0.005]
[1763376693671,0.405504,3203.2,3202.1,0.005]
[1763376693872,0.405504,3203.0,3202.1,0.005]
[1763376694100,0.405504,3202.8,3202.1,0.005]
[1763376694901,0.405504,3203.2,3202.1,0.005]
[1763376695202,0.405504,3203.0,3202.1,0.005]
[1763376695390,0.405504,3202.8,3202.1,0.005]
[1763376696191,1.07699824,3203.2,3202.1,0.005]
[1763376696395,0.405504,3203.0,3202.1,0.005]
[1763376696709,0.405504,3202.8,3202.1,0.005]
[1763376697004,0.405504,3203.0,3202.1,0.005]
[1763376697174,0.19167354,3203.1,3202.1,0.005]
[1763376697375,1.36824517,3203.0,3202.1,0.005]
[1763376697707,0.0012,3203.5,3202.1,0.005]
[1763376697897,0.96287859,3203.4,3202.1,0.005]
[1763376698202,0.405504,3203.2,3202.1,0.005]
[1763376698405,0.0012,3203.5,3202.1,0.005]
[1763376698602,0.405504,3203.3,3202.1,0.005]
[1763376699393,0.0012,3203.5,3202.1,0.005]
[1763376699615,0.405504,3203.3,3202.1,0.005]
[1763376700310,0.0012,3203.5,3202.1,0.005]
[1763376700511,0.29144378,3203.4,3202.1,0.005]
[1763376701334,0.29143095,3203.4,3202.1,0.005]
[1763376701828,0.405504,3203.3,3202.1,0.005]
[1763376702229,0.0012,3203.5,3202.1,0.005]
[1763376702532,0.405504,3203.3,3202.1,0.005]
[1763376702828,0.405504,3203.4,3202.1,0.005]
[1763376703037,0.0012,3203.5,3202.1,0.005]
[1763376703235,0.29144163,3203.4,3202.1,0.005]
[1763376703536,0.405504,3203.4,3202.1,0.005]
[1763376703707,0.406704,3203.5,3202.1,0.005]
[1763376704112,0.0012,3203.5,3202.1,0.005]
[1763376704429,0.406704,3203.5,3202.1,0.005]
[1763376704730,0.0012,3203.5,3202.1,0.005]
[1763376704918,0.405904,3203.5,3202.1,0.005]
[1763376705318,0.0004,3203.5,3202.1,0.005]
[1763376705519,0.405904,3203.5,3202.1,0.005]
[1763376705721,0.0004,3203.5,3202.1,0.005]
[1763376705897,0.405904,3203.5,3202.1,0.005]
[1763376706101,0.0004,3203.5,3202.1,0.005]
[1763376706732,0.405904,3203.5,3202.1,0.005]
[1763376706909,0.0004,3203.5,3202.1,0.005]
[1763376710334,0.405904,3203.5,3202.1,0.005]
[1763376710862,0.0004,3203.5,3202.1,0.005]
[1763376712323,0.405504,3203.3,3202.1,0.005]
[1763376712560,0.405904,3203.5,3202.1,0.005]
[1763376712767,0.405504,3203.3,3202.1,0.005]
[1763376712951,0.0004,3203.5,3202.1,0.005]
[1763376713270,0.405504,3203.3,3202.1,0.005]
[1763376713420,0.405904,3203.5,3202.1,0.005]
[1763376713625,0.405504,3203.3,3202.1,0.005]
[1763376714030,0.0004,3203.5,3202.1,0.005]
[1763376714371,0.405504,3203.3,3202.1,0.005]
[1763376714573,0.405504,3203.4,3202.1,0.005]
[1763376714943,0.0004,3203.5,3202.1,0.005]
[1763376715145,0.69807673,3203.4,3202.1,0.005]
[1763376715468,0.405504,3203.4,3202.1,0.005]
[1763376716477,0.29271203,3203.3,3202.1,0.005]
[1763376716655,0.405504,3203.4,3202.1,0.005]
[1763376716858,0.29271194,3203.3,3202.1,0.005]
[1763376717042,0.0004,3203.5,3202.1,1.1387408]
[1763376717248,0.405504,3203.3,3202.2,0.42627751]
[1763376717773,0.0004,3203.5,3202.2,0.42627751]
[1763376717980,0.405504,3203.3,3202.2,0.42627751]
[1763376718175,0.0004,3203.5,3202.2,0.42627751]
[1763376718410,0.405504,3203.3,3202.2,0.42627751]
[1763376718885,0.405904,3203.5,3202.1,0.005]
[1763376719182,0.405504,3203.3,3202.2,1.1337408]
[1763376719390,0.0004,3203.5,3202.1,0.005]
[1763376719542,0.405504,3203.2,3202.1,0.005]
[1763376720249,0.405504,3203.3,3202.1,0.005]
[1763376720449,0.29275975,3203.2,3202.1,0.005]
[1763376720782,0.405504,3203.3,3202.1,0.005]
[1763376721088,0.0004,3203.5,3202.1,0.005]
[1763376721260,0.405504,3203.3,3202.1,0.005]
[1763376721672,0.0004,3203.5,3202.1,0.005]
[1763376721877,0.405504,3203.3,3202.1,0.005]
[1763376722288,0.0004,3203.5,3202.1,0.005]
[1763376722500,0.405504,3203.3,3202.1,0.005]
[1763376722704,0.405504,3203.1,3202.1,0.005]
[1763376722867,0.405504,3202.9,3202.1,0.005]
[1763376723192,0.405504,3202.7,3202.1,0.005]
[1763376723367,0.405504,3202.5,3202.1,0.005]
[1763376723768,0.84036557,3203.1,3202.1,0.005]
[1763376723769,0.405504,3202.8,3202.1,0.005]
[1763376723969,0.96652793,3202.7,3202.1,0.005]
[1763376724264,0.405504,3202.5,3202.1,0.005]
[1763376724468,0.405504,3202.8,3202.1,0.005]
[1763376724700,0.96620462,3202.7,3202.1,0.005]
[1763376724904,0.405504,3202.5,3202.1,0.005]
[1763376725281,1.0790784,3203.0,3202.1,0.005]
[1763376725471,0.405504,3202.8,3202.1,0.005]
[1763376725801,0.405504,3202.6,3201.0,1.1337408]
[1763376726012,0.29235048,3202.5,3200.7,1.1337408]
[1763376726190,0.405504,3202.3,3200.6,1.873]
[1763376726504,0.405504,3202.7,3200.7,1.7468633]
[1763376726700,0.29235211,3202.6,3200.7,0.6131225]
[1763376726902,0.405504,3202.4,3200.7,0.6131225]
[1763376727105,0.405504,3202.4,3200.8,0.24861225]
[1763376727305,0.405504,3202.7,3200.8,0.24861225]
[1763376727604,0.405504,3202.5,3200.8,0.24861225]
[1763376728000,0.405504,3202.5,3200.8,0.27985443]
[1763376728206,0.405504,3202.7,3200.8,0.27985443]
[1763376728389,0.405504,3202.7,3200.9,0.20267177]
[1763376728587,0.405504,3202.7,3200.8,0.24861225]
[1763376729180,0.405504,3202.8,3200.8,1.38235305]
[1763376729380,1.07895027,3202.8,3200.8,0.24861225]
[1763376729582,0.405504,3202.8,3200.8,0.24861225]
[1763376730871,0.405504,3202.8,3201.0,1.1337408]
[1763376731108,0.405504,3202.8,3201.1,0.84554598]
[1763376731313,0.407504,3202.8,3201.1,0.84554598]
[1763376732496,1.08095027,3202.8,3201.1,0.84554598]
[1763376732696,0.407504,3202.8,3201.1,0.84554598]
[1763376733712,0.407504,3202.8,3201.4,1.1337408]
[1763376734013,0.002,3202.8,3201.5,0.44395402]
[1763376734181,0.002,3202.8,3201.8,7.32171898]
[1763376734511,0.002,3202.8,3201.5,0.44395402]
[1763376736915,0.002,3202.8,3202.1,5.86471142]
[1763376737530,0.002,3202.8,3202.3,5.86471142]
[1763376737740,0.002,3202.8,3202.5,5.86471142]
[1763376738224,0.002,3202.8,3201.5,0.44395402]
[1763376738430,0.002,3202.8,3202.3,5.86471142]
[1763376740079,0.002,3202.8,3202.5,5.86471142]
[1763376740247,0.002,3202.8,3202.7,5.86471142]
[1763376740777,0.002,3202.8,3202.5,5.86471142]
[1763376741771,0.002,3202.8,3201.7,1.1337408]
[1763376741772,0.002,3202.8,3202.2,5.86471142]
[1763376743453,0.002,3202.8,3202.0,1.1337408]
[1763376743845,0.002,3202.8,3201.9,5.86471142]
[1763376744549,0.002,3202.8,3202.1,5.86471142]
[1763376745489,0.002,3202.8,3201.6,1.1337408]
[1763376745490,0.002,3202.8,3201.1,4.25766695]
[1763376745651,0.002,3202.8,3202.3,5.86471142]
[1763376745986,0.407504,3202.8,3202.3,5.86471142]
[1763376746449,0.002,3202.8,3202.3,5.86471142]
[1763376748749,0.002,3202.8,3202.6,5.86471142]
[1763376749163,0.002,3202.8,3202.7,7.02967587]
[1763376749391,0.002,3202.8,3202.1,1.1337408]
[1763376749551,0.002,3202.8,3202.7,6.99845222]
[1763376750801,0.002,3202.8,3202.7,1.1337408]
[1763376751090,0.0012,3202.8,3202.7,1.1337408]
[1763376752097,0.0012,3202.8,3202.7,1.6141408]
[1763376752899,0.0012,3202.8,3202.7,1.31241744]
[1763376753884,0.0012,3202.8,3202.7,1.79281744]
[1763376755085,0.0012,3202.8,3202.7,1.31241744]
[1763376757311,0.0012,3202.8,3202.7,1.79281744]
[1763376758005,0.0012,3202.8,3202.7,1.31241744]
[1763376759600,0.0012,3202.8,3202.7,1.79281744]
[1763376760383,0.0012,3202.8,3202.7,1.31241744]
[1763376760811,0.0012,3202.8,3202.7,1.79281744]
[1763376761690,0.0012,3202.8,3202.7,1.31241744]
[1763376761984,0.0012,3202.8,3202.7,1.79281744]
[1763376763010,0.002,3203.2,3202.7,8.06877209]
[1763376763209,0.002,3203.2,3203.1,7.31457816]
[1763376763521,0.002,3203.2,3203.1,8.44831896]
[1763376763887,0.002,3203.2,3203.1,12.19209454]
[1763376764086,0.002,3203.2,3203.1,8.44831896]
[1763376765714,0.002,3203.2,3203.1,8.58971896]
[1763376765888,0.002,3203.2,3203.1,12.67471733]
[1763376766614,0.002,3203.2,3203.1,9.07234175]
[1763376767379,0.002,3203.2,3203.1,12.19431733]
[1763376767793,0.002,3203.2,3203.1,9.55274175]
[1763376767994,0.002,3203.2,3203.1,8.93094175]
[1763376768196,0.4804,3203.2,3203.1,8.93094175]
[1763376768912,0.002,3203.2,3203.1,9.56304175]
[1763376769117,0.002,3203.2,3203.1,9.42164175]
[1763376769325,0.002,3203.2,3203.1,13.16541733]
[1763376770888,0.002,3203.2,3203.1,19.02257415]
[1763376771087,0.002,3203.2,3203.1,11.70799599]
[1763376771283,0.002,3203.2,3203.1,8.10562041]
[1763376771617,0.002,3203.2,3203.1,11.22759599]
[1763376773399,0.002,3203.2,3203.1,8.10562041]
[1763376773599,0.002,3203.2,3203.1,7.47352041]
[1763376773600,0.4804,3203.2,3203.1,7.47352041]
[1763376773914,0.4796,3203.2,3203.1,7.47352041]
[1763376774219,0.0012,3203.2,3203.1,10.59549599]
[1763376774520,0.0012,3203.2,3203.1,11.08619599]
[1763376774684,0.0012,3203.2,3203.1,7.96422041]
[1763376774886,0.4796,3203.2,3203.1,7.47352041]
[1763376775282,0.0012,3203.2,3203.1,7.96422041]
[1763376775501,0.0012,3203.2,3203.1,8.10562041]
[1763376775920,0.0012,3203.2,3203.1,7.96422041]
[1763376777724,0.4725,3203.2,3203.1,7.47352041]
[1763376778227,0.9234,3203.2,3203.1,7.47352041]
[1763376778400,0.9234,3203.2,3203.1,1.1337408]
[1763376780210,0.88437409,3203.2,3203.1,1.1337408]
[1763376781814,0.4513,3203.5,3203.1,1.1337408]
[1763376782018,0.4513,3203.5,3203.4,5.85715682]
[1763376782341,0.9226,3203.5,3203.4,5.85715682]
[1763376783143,0.9226,3203.5,3203.1,1.1337408]
[1763376783347,0.0004,3203.5,3203.4,5.85715682]
[1763376783705,0.4717,3203.5,3203.4,5.85715682]
[1763376784046,0.9226,3203.5,3203.4,5.85715682]
[1763376787846,0.9226,3203.5,3203.4,5.85084682]
[1763376788235,0.0004,3203.5,3203.4,6.8949315]
[1763376789550,0.0004,3203.5,3203.4,10.01661471]
[1763376790352,0.0004,3203.5,3203.4,6.8949315]
[1763376790551,0.0004,3203.5,3203.4,6.4359315]
[1763376790846,0.4717,3203.5,3203.4,6.29649453]
[1763376791527,0.9226,3203.5,3203.4,5.71140985]
[1763376792418,0.0004,3203.5,3203.4,6.17040985]
[1763376792944,0.0004,3203.5,3203.4,5.71140985]
[1763376793657,0.0004,3203.5,3203.4,6.17040985]
[1763376793952,0.0004,3203.5,3203.4,6.90082492]
[1763376794324,0.0004,3203.5,3203.4,6.44182492]
[1763376794325,0.4717,3203.5,3203.4,6.44182492]
[1763376794857,0.9226,3203.5,3203.4,6.44182492]
[1763376795059,0.9226,3203.5,3203.4,5.71140985]
[1763376796330,0.9357,3203.5,3203.2,1.1337408]
[1763376796545,0.7177,3203.4,3203.2,1.1337408]
[1763376796732,0.4692,3203.3,3203.2,1.1337408]
[1763376796937,0.9332,3203.3,3203.2,1.1337408]
[1763376797159,0.0004,3203.5,3203.2,2.48425587]
[1763376797378,0.0016,3203.6,3203.5,6.84515065]
[1763376797731,0.4896,3203.6,3203.5,6.84515065]
[1763376797925,0.9536,3203.6,3203.5,1.1337408]
[1763376799170,0.4896,3203.6,3203.5,6.84515065]
[1763376799364,0.4896,3203.6,3203.5,7.52966572]
[1763376799588,0.9536,3203.6,3203.5,7.52966572]
[1763376799884,0.9536,3203.6,3203.5,6.84515065]
[1763376800428,0.4896,3203.6,3203.5,6.84515065]
[1763376802030,0.0016,3203.6,3203.5,6.84515065]
[1763376803062,0.4896,3203.6,3203.5,6.84515065]
[1763376806088,0.9536,3203.6,3203.5,6.84515065]
[1763376808365,0.971,3203.6,3203.5,6.84515065]
[1763376808966,0.4896,3203.6,3203.5,6.84515065]
[1763376809175,0.971,3203.6,3203.5,6.84515065]
[1763376810351,0.4896,3203.6,3203.5,6.84515065]
[1763376811453,0.971,3203.6,3203.5,6.84515065]
[1763376811668,0.4896,3203.6,3203.5,6.84515065]
[1763376813704,0.971,3203.6,3203.5,6.84515065]
[1763376813905,0.971,3203.6,3203.5,8.02476572]
[1763376813906,0.0016,3203.6,3203.5,8.02476572]
[1763376814108,0.0016,3203.6,3203.5,11.60365148]
[1763376815784,0.007,3203.9,3203.5,11.60365148]
[1763376815979,0.007,3203.9,3203.8,6.20640985]
[1763376816179,0.007,3203.9,3203.8,7.34015065]
[1763376816393,0.007,3203.9,3203.8,8.40233558]
[1763376817179,0.007,3203.9,3203.8,7.94503558]
[1763376817988,0.007,3203.9,3203.8,8.40233558]
[1763376820020,0.4912,3203.9,3203.8,7.45003558]
[1763376820621,0.0062,3203.9,3203.8,7.45003558]
[1763376821627,0.0062,3203.9,3203.8,7.94503558]
[1763376821926,0.0062,3203.9,3203.8,8.40233558]
[1763376822120,0.0062,3203.9,3203.8,7.94503558]
[1763376826833,0.9726,3203.9,3203.8,7.45003558]
[1763376827202,1.156,3203.9,3203.8,1.73862573]
[1763376827419,0.4912,3203.9,3203.8,1.1337408]
[1763376827828,0.4912,3203.9,3203.8,7.34015065]
[1763376827829,0.0062,3203.9,3203.8,7.34015065]
[1763376828663,0.4912,3203.9,3203.8,6.84515065]
[1763376828956,0.9726,3203.9,3203.8,6.84515065]
[1763376829155,0.9726,3203.9,3203.8,7.52966572]
[1763376829321,0.9726,3203.9,3203.8,1.1337408]
[1763376833456,0.4912,3203.9,3203.8,1.1337408]
[1763376834460,0.9726,3203.9,3203.8,1.1337408]
[1763376838295,0.9726,3203.9,3203.8,1.1347408]
[1763376843112,0.9718,3203.9,3203.8,1.1347408]
[1763376847811,0.4904,3203.9,3203.8,1.1347408]
[1763376848113,0.0054,3203.9,3203.8,1.5938408]
[1763376848610,0.4927,3203.9,3203.8,1.1347408]
[1763376852535,0.0054,3203.9,3203.8,1.1347408]
[1763376852901,0.0054,3203.9,3203.8,7.45156418]
[1763376853098,0.0054,3203.9,3203.8,8.6535206]
[1763376854530,0.0054,3203.9,3203.8,8.1967206]
[1763376857330,0.0054,3203.9,3203.8,7.45156418]
[1763376857740,0.4795,3203.9,3203.8,6.99246418]
[1763376858745,0.0054,3203.9,3203.8,7.48146418]
[1763376859818,0.0054,3203.9,3203.8,1.6237408]
[1763376860019,0.0054,3203.9,3203.8,1.1347408]
[1763376860231,0.4795,3203.9,3203.8,1.1347408]
[1763376860920,0.0054,3203.9,3203.8,1.1347408]
[1763376861632,0.0054,3203.9,3203.8,1.6237408]
[1763376863730,0.0054,3203.9,3203.8,2.37188722]
[1763376864261,0.0054,3203.9,3203.8,2.40310015]
[1763376864441,0.0054,3203.9,3203.8,2.85690015]
[1763376865872,0.0054,3203.9,3203.8,5.97819361]
[1763376866175,0.0054,3203.9,3203.8,5.61824066]
[1763376866351,0.0054,3203.9,3203.8,6.07204066]
[1763376866669,0.0046,3203.9,3203.8,6.07204066]
[1763376866970,0.0046,3203.9,3203.8,2.4969472]
[1763376867546,0.0046,3203.9,3203.8,1.75710078]
[1763376867777,0.4731,3203.9,3203.8,1.25980078]
[1763376868161,0.9288,3203.9,3203.8,1.25980078]
[1763376869078,0.4731,3203.9,3203.8,1.25980078]
[1763376871272,0.0046,3203.9,3203.8,2.6561532]
[1763376871476,0.0066,3203.9,3203.8,2.6561532]
[1763376872444,0.0066,3203.9,3203.8,2.1588532]
[1763376872656,0.4751,3203.9,3203.8,2.1588532]
[1763376873888,0.4751,3203.9,3203.8,1.25980078]
[1763376875272,0.4751,3203.9,3203.8,0.12605998]
[1763376877265,0.4751,3203.9,3203.8,1.25980078]
[1763376879686,0.9308,3203.9,3203.8,1.25980078]
[1763376879891,1.1254,3203.9,3203.8,1.25980078]
[1763376880611,0.6697,3203.9,3203.8,1.25980078]
[1763376880906,1.1254,3203.9,3203.8,0.001]
[1763376884487,7.38862738,3203.9,3203.5,0.001]
[1763376884701,0.2574,3203.6,3203.5,0.001]
[1763376885097,0.7131,3203.6,3203.5,0.001]
[1763376885320,0.7131,3203.6,3203.4,0.001]
[1763376885321,6.97632738,3203.6,3203.4,0.001]
[1763376885478,0.405504,3203.1,3202.7,0.001]
[1763376885816,6.52272738,3203.2,3202.7,0.001]
[1763376885817,1.35992714,3203.0,3202.7,0.001]
[1763376886024,1.81562714,3203.0,3202.7,0.001]
[1763376888429,7.67335052,3203.0,3202.7,0.001]
[1763376888604,6.98052738,3203.0,3202.7,0.001]
[1763376889126,6.97972738,3203.0,3202.7,0.001]
[1763376889734,1.1126,3202.9,3202.7,0.001]
[1763376890032,1.85010274,3202.9,3202.7,0.001]
[1763376890622,1.97528405,3202.9,3202.7,0.001]
[1763376890940,1.85010274,3202.9,3202.7,0.001]
[1763376891106,1.518104,3202.9,3202.7,0.001]
[1763376902542,0.662804,3202.6,3202.3,0.001]
[1763376902753,6.71622738,3202.4,3202.3,0.001]
[1763376903140,7.19432738,3202.4,3202.3,0.001]
[1763376903454,8.03896847,3202.4,3202.3,0.001]
[1763376909629,7.91376012,3202.4,3202.3,0.001]
[1763376910178,8.03895593,3202.4,3202.3,0.001]
[1763376910349,7.91376012,3202.4,3202.3,0.001]
[1763376911286,8.20488543,3202.4,3202.3,0.001]
[1763376912159,8.20408543,3202.4,3202.3,0.001]
[1763376912872,8.19353857,3202.4,3202.3,0.001]
[1763376913463,8.06834276,3202.4,3202.3,0.001]
[1763376913778,8.19353857,3202.4,3202.3,0.001]
[1763376913957,1.99345786,3202.4,3202.3,0.001]
[1763376914161,0.98289981,3202.4,3202.3,0.001]
[1763376914367,1.14938508,3202.4,3202.3,0.001]
[1763376914967,1.62748508,3202.4,3202.3,0.001]
[1763376915683,1.14938508,3202.4,3202.3,0.001]
[1763376915883,1.62748508,3202.4,3202.3,0.001]
[1763376916891,1.79023359,3202.4,3202.3,0.001]
[1763376922696,2.46301184,3202.4,3202.3,0.001]
[1763376923000,2.44441184,3202.4,3202.3,0.001]
[1763376923893,1.98491184,3202.4,3202.3,0.001]
[1763376924063,0.85993359,3202.4,3202.3,0.4614]
[1763376924595,0.29168108,3202.4,3202.3,0.4614]
[1763376924780,0.002,3202.5,3202.3,0.9288]
[1763376925103,0.002,3202.5,3202.4,0.4604]
[1763376925351,0.002,3202.5,3202.4,0.9278]
[1763376929059,0.002,3202.5,3202.3,0.001]
[1763376929258,0.002,3202.5,3202.4,0.4507]
[1763376929781,0.002,3202.5,3202.4,0.9077]
[1763376930368,0.002,3202.5,3202.4,0.4507]
[1763376930667,0.4784,3202.5,3202.3,0.001]
[1763376931046,0.002,3202.5,3202.4,0.4507]
[1763376931753,0.4784,3202.5,3202.3,0.001]
[1763376931969,0.002,3202.5,3202.3,0.001]
[1763376932463,0.4764,3202.4,3202.3,0.001]
[1763376934776,0.002,3202.5,3202.3,0.4517]
[1763376934981,0.002,3202.5,3202.4,0.4507]
[1763376935160,0.0012,3202.5,3202.4,0.4507]
[1763376935365,0.0012,3202.5,3202.3,0.001]
[1763376935670,0.0012,3202.5,3202.4,0.4507]
[1763376937050,0.0012,3202.5,3202.4,0.9077]
[1763376938537,0.0012,3202.5,3202.4,0.4507]
[1763376939873,0.0012,3202.5,3202.4,0.4517]
[1763376941390,0.4776,3202.5,3202.4,0.001]
[1763376941969,0.948,3202.5,3202.4,0.001]
[1763376943991,0.4776,3202.5,3202.4,0.001]
[1763376944365,0.948,3202.5,3202.4,0.001]
[1763376948363,0.4776,3202.5,3202.4,0.001]
[1763376948597,0.0012,3202.5,3202.4,0.4517]
[1763376948969,0.4776,3202.5,3202.4,0.001]
[1763376949165,0.948,3202.5,3202.4,0.001]
[1763376953000,0.0012,3202.5,3202.4,0.001]
[1763376953203,0.4776,3202.5,3202.4,0.001]
[1763376953606,0.0012,3202.5,3202.4,0.001]
[1763376954796,0.0012,3202.5,3202.4,0.4517]
[1763376956100,0.0012,3202.5,3202.4,0.9087]
[1763376958284,0.0004,3202.5,3202.4,0.9087]
[1763376960338,0.0004,3202.5,3202.4,3.574358]
[1763376960498,0.002,3203.6,3203.3,0.4708]
[1763376960687,0.002,3203.6,3203.5,7.32652151]
[1763376961217,0.002,3203.6,3203.5,7.81172151]
[1763376961402,0.002,3203.6,3203.5,2.70932974]
[1763376961581,0.002,3203.6,3203.5,2.0897408]
[1763376964515,0.002,3203.6,3203.5,1.6045408]
[1763376965630,0.002,3203.6,3203.2,0.4852]
[1763376965832,0.4845,3203.6,3203.1,0.1772]
[1763376966185,0.9736,3203.6,3203.1,0.1772]
[1763376967224,0.4845,3203.6,3203.1,0.1772]
[1763376967423,0.9736,3203.6,3203.1,0.1772]
[1763376969742,0.3023,3203.2,3202.8,0.0731]
[1763376969946,0.3023,3203.2,3202.4,0.001]
[1763376969947,0.3023,3203.2,3202.5,0.4852]
[1763376971835,0.4891,3203.1,3202.4,0.001]
[1763376972343,0.4891,3203.1,3202.4,0.4862]
[1763376972650,0.4891,3203.3,3202.5,0.001]
[1763376973212,0.4891,3203.3,3202.6,0.16209408]
[1763376973732,0.4891,3203.3,3202.6,1.78103488]
[1763376976259,0.002,3203.6,3202.6,1.29583488]
[1763376976428,0.4891,3203.5,3202.7,0.4852]
[1763376979867,0.4891,3203.5,3202.5,5.8641617]
[1763376979868,0.6408,3202.8,3202.5,0.001]
[1763376980067,0.4966,3202.6,3202.5,0.001]
[1763376980649,0.9585,3202.6,3202.5,0.001]
[1763376980937,1.364004,3202.6,3202.5,0.001]
[1763376981149,2.10114057,3202.6,3202.5,0.001]
[1763376981346,2.10034057,3202.6,3202.5,0.001]
[1763376984977,1.63844057,3202.6,3202.5,0.001]
[1763376985177,2.10034057,3202.6,3202.5,0.001]
[1763376989949,2.10234057,3202.6,3202.5,0.001]
[1763376991179,7.96550227,3202.6,3202.5,0.001]
[1763376994108,1.64044057,3202.6,3202.5,0.001]
[1763376994285,1.398104,3202.6,3202.5,0.001]
[1763376997907,2.5318448,3202.6,3202.5,0.001]
[1763377003805,8.3950065,3202.6,3202.5,0.001]
[1763377004221,8.68591234,3202.6,3202.5,0.001]
[1763377004420,8.68511234,3202.6,3202.5,0.001]
[1763377004998,9.17534175,3202.6,3202.5,0.001]
[1763377006510,10.10729592,3202.6,3202.5,0.001]
[1763377007531,9.61706651,3202.6,3202.5,0.001]
[1763377016909,10.28941582,3202.6,3202.5,0.001]
[1763377021025,9.12226651,3202.6,3202.5,0.001]
[1763377021332,3.22770481,3202.6,3202.5,0.001]
[1763377021537,1.42664664,3202.6,3202.5,0.4513]
[1763377021948,0.29290584,3202.6,3202.5,0.9491]
[1763377022139,0.002,3202.6,3202.5,0.9491]
[1763377026368,0.002,3202.6,3202.5,0.4513]
[1763377026768,0.002,3202.6,3202.5,0.9491]
[1763377027336,0.0012,3202.6,3202.5,0.9491]
[1763377034205,0.0012,3202.6,3202.5,0.4513]
[1763377034409,0.0012,3202.6,3202.5,0.9491]
[1763377040005,0.0012,3202.6,3202.5,0.4513]
[1763377040808,0.0012,3202.6,3202.5,0.9224]
[1763377050645,0.0004,3202.6,3202.5,0.91436]
[1763377051934,0.0004,3202.6,3202.4,0.001]
[1763377052133,0.702804,3202.5,3202.4,0.001]
[1763377052318,2.12820426,3202.5,3202.4,0.001]
[1763377052517,3.45707208,3202.5,3202.4,0.001]
[1763377053343,3.58227102,3202.5,3202.4,0.001]
[1763377056254,4.07248056,3202.5,3202.4,0.001]
[1763377057377,3.58227102,3202.5,3202.4,0.001]
[1763377059869,0.900204,3202.4,3199.2,3.1257712]
[1763377060067,6.1238779,3202.2,3200.4,1.1337408]
[1763377060572,0.405504,3202.0,3200.4,4.25834049]
[1763377061136,0.405504,3201.8,3200.4,4.25834049]
[1763377061339,0.405504,3201.8,3200.4,1.1337408]
[1763377061540,0.405504,3202.0,3201.7,0.3616]
[1763377061762,0.405504,3202.0,3201.9,0.3616]
[1763377062040,0.405504,3202.2,3201.9,0.3616]
[1763377062236,0.3616,3202.0,3201.9,0.3616]
[1763377062441,0.3616,3202.0,3201.9,0.7232]
[1763377062643,0.405504,3202.3,3201.9,0.7232]
[1763377062862,0.405504,3202.3,3201.9,0.3616]
[1763377063281,0.405504,3202.1,3201.9,0.3616]
[1763377063777,0.405504,3202.1,3202.0,0.3616]
[1763377064677,0.405504,3202.1,3201.5,0.3616]
[1763377064864,0.405504,3202.1,3202.0,0.3616]
[1763377065754,0.405504,3202.1,3201.7,0.3616]
[1763377066157,0.405504,3202.1,3202.0,0.3616]
[1763377067584,0.405504,3202.1,3200.7,1.1337408]
[1763377067746,0.405504,3202.1,3201.5,0.3616]
[1763377067937,0.405504,3202.1,3202.0,0.3616]